{"text_format":"1","workbook":"xlsx","n_sheets":1,"sheets":["01.10.2020 "],"not_rendered":{"charts":0,"images":0,"macros":0,"external_links":0,"defined_names":2,"comments":0,"pivot_tables":0},"unopened":[],"bounds":{"document_bytes":16777216,"sheet_cells":100000,"rows_first":2000,"rows_last":500,"rows_between":2000,"halvings":0,"cell_chars":16384,"cell_head_chars":4096},"cells_cut":0,"cells_raw":0,"read":"whole","date_system":"1900"}

{"sheet":"01.10.2020 ","index":0,"n_rows":46,"n_cols":6,"rows_kept":46,"cut":false,"hidden":false,"merged":[[48,1,48,2],[0,3,0,5],[3,0,3,5],[47,1,47,2],[1,3,1,5],[42,0,42,2]]}
[null,null,null,"Приложение №7"]
[null,null,null,"к Пояснительной записке к Отчету об исполнении бюджета ЗАТО г. Радужный Владимирской области за 2020 год"]
[]
["Сведения о фактической численности муниципальных служащих, работников казенных и бюджетных учреждений и расходы на их денежное содержание по состоянию за  2020 год"]
[]
["№п/п","Код раздела (подраздела)","Наименование раздела (подраздела) расходов","Фактическая численность на 01.01.2021 года (чел.)","Годовой фонд оплаты труда с начислениями (тыс.руб.)","Исполнено за отчетный период (тыс.руб.)"]
[1,2,3,4,5,6]
[1,"0100","Общегосударственные вопросы",{"$f":"D10+D11+D12+D13+D14","v":203.5},{"$f":"E10+E11+E12+E13+E14","v":68005.540000000008},{"$f":"F10+F11+F12+F13+F14","v":67953.119999999995}]
[null,null,"в том числе:"]
["1.1","0102","Функционирование высшего должностного лица субъекта Российской Федерации и муниципального образования",1,364.05,364.05]
["1.2","0103","Функционирование законодательных (представительных) органов государственной власти и представительных органов муниципальных образований",2,1254.48,1254.48]
["1.3","0104","Функционирование Правительства Российской Федерации, высших исполнительных органов государственной власти субъектов Российской Федерации, местных администраций",17,10458.27,10458.27]
["1.4","0106","Обеспечение деятельности финансовых, налоговых и таможенных органов и органов финансового (финансово-бюджетного) надзора",10,5221.6899999999996,5212.74]
["1.5","0113","Другие общегосударственные вопросы",173.5,50707.05,50663.58]
["2","0300","Национальная безопасность и правоохранительная деятельность, всего, в том числе",{"$f":"D17","v":5},{"$f":"E17","v":2203.77},{"$f":"F17","v":2203.77}]
[null,null,"в том числе:"]
["2.1","0309","Защита населения и территории от чрезвычайных ситуаций природного и техногенного характера, гражданская оборона",5,2203.77,2203.77]
["3.","0400","Национальная экономика",{"$f":"D20","v":37},{"$f":"E20","v":16814.25},{"$f":"F20","v":16803.88}]
[null,null,"в том числе:"]
["3.1","0409","Дорожное хозяйство (дорожные фонды)",37,16814.25,16803.88]
["4.","0500","Жилищно-коммунальное хозяйство",{"$f":"D23+D24","v":61},{"$f":"E23+E24","v":25563.06},25471.59]
[null,null,"в том числе:"]
["4.1","0503","Благоустройство",5,2545.4499999999998,2544.9299999999998]
["4.2","0505","Другие вопросы в области жилищно-коммунального хозяйства",56,23017.61,22926.66]
["5","0700","Образование",{"$f":"D27+D28+D29+D30","v":543},{"$f":"E27+E28+E29+E30","v":219350.1},{"$f":"F27+F28+F29+F30","v":213802.83000000002}]
[null,null,"в том числе:"]
["5.1","0701","Дошкольное образование",223,84685.93,81670.63]
["5.2","0702","Общее образование ",195,89911.7,87638.19]
["5.3","0703","Дополнительное образование детей",99,34553.879999999997,34338.22]
["5.4.","0709","Другие вопросы в области образования",26,10198.59,10155.790000000001]
["6.","0800","Культура, кинематография",{"$f":"D33+D34","v":88},{"$f":"E33+E34","v":32139},{"$f":"F33+F34","v":32139}]
[null,null,"в том числе:"]
["6.1","0801","Культура",48,20821.87,20821.87]
["6.2","0804","Другие вопросы в области культуры, кинематографии",40,11317.13,11317.13]
["7.","1000","Социальная политика",{"$f":"D37","v":2},{"$f":"E37","v":978.98},{"$f":"F37","v":978.98}]
[null,null,"в том числе:"]
["7.1","1006","Другие вопросы в области социальной политики",2,978.98,978.98]
["8.","1100","Физическая культура и спорт",{"$f":"D40","v":3},{"$f":"E40","v":910.58},{"$f":"F40","v":910.58}]
[null,null,"в том числе:"]
["8.1","1103","Спорт высших достижений",3,910.58,910.58]
[null,null,"Всего:",{"$f":"D8+D15+D18+D21+D25+D31+D35+D38","v":942.5},{"$f":"E8+E15+E18+E21+E25+E31+E35+E38","v":365965.28},{"$f":"F8+F15+F18+F21+F25+F31+F35+F38","v":360263.75}]
[]
["Заместитель главы администрации города по финансам и экономике, начальник финансового управления     ",null,null,null,"О.М. Горшкова"]
[]
[]
["В.Н. Милованова, 3-67-17"]